Cogmind - Beta 13 X1 @@@ ROGUE MODE // 2023.11.30 @ 14:31:54 Player: Plexion Result: Destroyed by 12-ASH with 12-ASH's Boomstick Performance ------------- Evolutions (1) 500 Regions Visited (6) 1200 Robots Destroyed (73) 365 Value Destroyed (1345) 1345 Prototype IDs (7) 140 Alien Tech Used (0) 0 Bonus (-35) -35 TOTAL SCORE: 3515 Bonus ------- High Alert Combat Kills 51 Follower Combat Kills 60 Friendly Fire -146 Cogmind --------- Core Integrity 0/400 Matter 184/300 Energy 92/100 System Corruption 0% Temperature Cool (0) Movement Treading (320) Ox2 Location -8/Mines Parts ------- > --- POWER (1) -------- (None) > --- PROPULSION (3) --- Light Treads > --- UTILITY (3) ------ High-capacity Storage Unit Targeting Computer > --- WEAPON (2) ------- 8R-AWN's Boregun 8R-AWN's Boregun > --- INVENTORY (20) --- Reinforced Fission Core Light Treads Advanced Myomer Leg Advanced Myomer Leg Improved Armor Integrity Analyzer Advanced Weapon Cycler Sensor Drone Bay (20/20) AS-neutralizer No. 17b Heavy Assault Rifle Improved Assault Rifle Improved Assault Rifle Mini Grenade Launcher Katana Axe Peak State ------------ > --- POWER ------------ Makeshift Power Source > --- PROPULSION ------- Improved Treads Improved Treads Advanced Myomer Leg > --- UTILITY ---------- High-capacity Storage Unit Targeting Computer Medium Armor Plating > --- WEAPON ----------- 8R-AWN's Boregun Katana > --- INVENTORY -------- Light Treads Light Treads Light Treads Light Treads Improved Treads Experimental Heat Sink Improved Armor Integrity Analyzer Advanced Weapon Cycler Hardened Light Armor Plating Sensor Drone Bay AS-neutralizer No. 17b Heavy Assault Rifle Improved Assault Rifle Improved Assault Rifle 8R-AWN's Boregun Mini Grenade Launcher Plasma Cutter Plasma Cutter Axe [Rating: 40] Favorites ----------- Power Light Ion Engine Engine Light Ion Engine Propulsion Light Treads Treads Light Treads Leg Advanced Myomer Leg Wheel Compact Wheel Utility Targeting Computer Device Seismic Detector Storage Large Storage Unit Processor Targeting Computer Protection Medium Armor Plating Weapon Improved Assault Rifle Energy Gun Small Laser Ballistic Gun Improved Assault Rifle Launcher Mini Grenade Launcher Special Weapon Plasma Cutter Impact Weapon Hammer Slashing Weapon Katana Build | -11 -10 -10 -9 -9 -9 -8 ------- Run | Jun Mat Min Mat Min Exi Min Slots Evolved 2 | . . . 2 . . . Power . | . . . . . . . Propulsion 1 | . . . 1 . . . Utility 1 | . . . 1 . . . Weapon . | . . . . . . . Parts Attached 97 | 7 11 7 27 6 29 10 Power 5 | 1 1 . 1 1 1 . Engine 5 | 1 1 . 1 1 1 . Core . | . . . . . . . Reactor . | . . . . . . . Propulsion 19 | 2 . 1 8 3 2 3 Treads 16 | 2 . 1 6 3 1 3 Leg 1 | . . . . . 1 . Wheel 2 | . . . 2 . . . Hover . | . . . . . . . Flight . | . . . . . . . Utility 23 | 1 4 3 5 . 7 3 Device 10 | . 2 2 2 . 3 1 Storage 5 | 1 2 1 . . 1 . Processor 1 | . . . 1 . . . Hackware . | . . . . . . . Protection 7 | . . . 2 . 3 2 Artifact . | . . . . . . . Weapon 50 | 3 6 3 13 2 19 4 Energy Gun 3 | 3 . . . . . . Energy Cannon . | . . . . . . . Ballistic Gun 25 | . 4 3 9 1 6 2 Ballistic Cannon . | . . . . . . . Launcher 4 | . . . 1 1 2 . Special Weapon 9 | . . . . . 7 2 Impact Weapon 4 | . 2 . 2 . . . Slashing Weapon 5 | . . . 1 . 4 . Piercing Weapon . | . . . . . . . Special Melee Weapon . | . . . . . . . Unidentified Prototypes 7 | . . 1 1 . 5 . Parts Lost 24 | . 1 3 8 . 2 10 Power 2 | . . . 1 . . 1 Propulsion 10 | . . 1 4 . . 5 Utility 5 | . 1 1 1 . . 2 Weapon 7 | . . 1 2 . 2 2 Highest Loss Streak 10 | . 1 1 6 . 1 10 To Critical Strikes 1 | . . . . . 1 . Average Slot Usage (%) 97 | . 95 94 94 100 100 90 Engine 11 | . 14 14 11 11 11 9 Treads 29 | . 28 28 25 33 33 27 Wheel 1 | . . . 5 . . . Device 4 | . 10 9 5 . . 2 Storage 11 | . 14 14 11 11 11 11 Processor 6 | . . . 7 11 11 11 Protection 6 | . . . 6 11 10 5 Ballistic Gun 19 | . 24 28 21 22 12 5 Special Weapon 1 | . . . . . 4 12 Slashing Weapon 2 | . . . . . 5 2 Naked Turns . | . . . . . . . Heaviest Build 61 | 11 32 34 40 40 59 61 Greatest Support 69 | 40 40 40 60 69 69 69 Greatest Overweight (x) 11 | . . . 11 . . . Average Overweight (x) . | . . . . . . . Largest Inventory Capacity 20 | 8 15 15 15 15 20 20 Average Capacity 15 | 7 11 15 15 15 19 20 Most Carried 20 | 2 14 15 15 15 20 20 Average Carried 14 | 1 7 13 13 14 17 17 Final Capacity 20 | 8 15 15 15 15 20 20 Final Carried 20 | 2 13 15 15 15 20 14 Class Distribution -------------------- 89% | Mutant 10% | Scavenger-Mutant Dominant Class ---------------- Mutant | -10/Materials Mutant | -10/Mines Mutant | -9/Materials Scavenger-Mutant | -9/Mines Mutant | -9/Exiles Mutant | -8/Mines Resources | -11 -10 -10 -9 -9 -9 -8 ----------- Run | Jun Mat Min Mat Min Exi Min Matter Collected 2554 | 157 482 191 770 103 823 28 Remotely . | . . . . . . . Salvage Created 2600 | . 491 217 1068 237 587 . Parts 211 | . 42 11 77 17 64 . Haulers Intercepted 7 | . 2 . 5 . . . Recyclers Shooed 1 | . . . 1 . . . Parts Field Recycled . | . . . . . . . Retrieved Matter . | . . . . . . . Parts Self-Destructed . | . . . . . . . Prevented . | . . . . . . . Kills | -11 -10 -10 -9 -9 -9 -8 ------- Run | Jun Mat Min Mat Min Exi Min Combat Hostiles Destroyed 57 | . 11 8 27 5 6 . Guns 47 | . 11 8 24 3 1 . AOE 10 | . . . 3 2 5 . Classes Destroyed 13 | . 4 2 3 2 2 . Worker 2 | . . . . 2 . . Builder 1 | . . . 1 . . . Tunneler 1 | . . 1 . . . . Hauler 7 | . 2 . 5 . . . Recycler 1 | . . . 1 . . . Turret 1 | . . . . . 1 . Watcher 3 | . 2 . 1 . . . Swarmer 21 | . 3 3 15 . . . Grunt 22 | . 8 . 10 4 . . Brawler 1 | . . . . 1 . . Sentry 2 | . . . 2 . . . Zionite 7 | . . . . . 7 . Assembled 10 | . . 5 . . 5 . Thug 1 | . . 1 . . . . Best Kill Streak 11 | . 4 4 11 3 5 . Combat Bots Only 10 | . 3 4 10 3 5 . Max Kills in Single Turn 3 | . 1 2 3 1 2 . Gunslinging 1 | . . 1 1 . . . Exploded 3 | . . . 3 1 2 . Melee . | . . . . . . . Uniques/NPCs Destroyed 4 | . . . . . 4 . 8R-AWN (-9/Exiles) EX-DEC (-9/Exiles) EX-BIN (-9/Exiles) EX-HEX (-9/Exiles) Combat | -11 -10 -10 -9 -9 -9 -8 -------- Run | Jun Mat Min Mat Min Exi Min Damage Taken 3986 | . 443 366 1092 100 533 1452 Core 483 | . 54 28 93 . 80 228 Absorbed by Shields 76 | . . 4 . . 72 . Regen/Repaired (Parts) 65 | . . . 65 . . . Core Remaining (%) 83 | 100 . 67 . . . . Volleys Fired 302 | . 48 18 83 11 131 11 Largest 2 | . 2 2 2 2 2 2 Hottest 80 | . 80 50 50 46 46 60 Shots Fired 521 | . 96 36 164 19 184 22 Gun 435 | . 96 36 162 16 111 14 Cannon . | . . . . . . . Launcher 9 | . . . 2 3 4 . Special 77 | . . . . . 69 8 Kinetic 431 | . 92 36 162 16 111 14 Thermal 4 | . 4 . . . . . Explosive 9 | . . . 2 3 4 . Electromagnetic . | . . . . . . . Impact 77 | . . . . . 69 8 Robot Hit Streak 16 | . 8 7 13 8 16 5 Robot Miss Streak 5 | . 5 2 4 2 5 2 Penetration Max 1 | . . . . . 1 . Secondary Targets 8 | . 1 2 5 . . . Max Gunslinging Chain 1 | . 1 1 1 . . . Shots Hit Robots 365 | . 67 23 108 11 141 15 Core Hits 135 | . 26 16 42 9 38 4 Critical Kills 2 | . . . 1 . 1 . Critical Parts Destroyed 5 | . . . . . 4 1 Critical Strikes 26 | . . . 1 . 22 3 Destroy 10 | . . . 1 . 8 1 Sever 16 | . . . . . 14 2 Melee Attacks 36 | . 7 . 5 . 24 . Impact 10 | . 7 . 3 . . . Slashing 26 | . . . 2 . 24 . Piercing . | . . . . . . . Sneak Attacks 5 | . . . . . 5 . Combat Hostiles . | . . . . . . . Follow-up Attacks . | . . . . . . . Damage Inflicted 6448 | . 880 418 1912 361 2653 224 Guns 4193 | . 843 407 1749 157 868 169 Cannons . | . . . . . . . Explosions 702 | . . . 156 184 362 . Melee 864 | . 31 . . . 833 . Ramming 44 | . 6 11 7 20 . . Kinetic 4183 | . 833 407 1749 157 868 169 Thermal 10 | . 10 . . . . . Explosive 702 | . . . 156 184 362 . Electromagnetic . | . . . . . . . Impact 676 | . 31 . . . 590 55 Slashing 833 | . . . . . 833 . Piercing . | . . . . . . . Highest Corruption 1 | . . 1 . . . . Average Corruption 1 | . . 1 . . . . Corruption Purged . | . . . . . . . Corruption Blocked . | . . . . . . . Effects 2 | . . 2 . . . . Message Errors 1 | . . 1 . . . . Energy Discharges 1 | . . 1 . . . . Overload Shots . | . . . . . . . Overflow Damage 198 | . 11 . 16 . 171 . Projectiles . | . . . . . . . Explosions 34 | . . . 16 . 18 . Melee 164 | . 11 . . . 153 . Knockbacks 3 | . . 1 . . 1 1 Impact 3 | . . 1 . . 1 1 Kinetic . | . . . . . . . Secondary . | . . . . . . . Self-Inflicted Damage 49 | . . . 31 18 . . Shots 2 | . . . 1 1 . . Rammed 12 | . 1 3 4 4 . . Targets Rammed 12 | . 1 3 4 4 . . Kicked . | . . . . . . . Crushed . | . . . . . . . Highest Temperature 36 | . 36 36 24 4 17 12 Average Temperature 10 | . 11 14 8 2 12 6 Received Heat Transfer 568 | . 189 32 279 48 20 . Siege Activations . | . . . . . . . Robots Corrupted . | . . . . . . . Combat Hostiles . | . . . . . . . Parts Fried 3 | . 3 . . . . . Impact Corruptions 2 | . 1 . . . 1 . Robots Melted . | . . . . . . . Combat Hostiles . | . . . . . . . Parts Melted . | . . . . . . . Heat Transferred 25 | . 25 . . . . . Parts Sabotaged . | . . . . . . . Parts Stolen . | . . . . . . . Parts Stripped . | . . . . . . . Power Chain Reactions . | . . . . . . . Missiles Intercepted . | . . . . . . . Alert | -11 -10 -10 -9 -9 -9 -8 ------- Run | Jun Mat Min Mat Min Exi Min Peak Influence 658 | . 178 108 658 396 . 1 Initial 238 | . . 33 20 238 . . Average 205 | . 81 61 394 254 . . Maximum Alert Level 2 | . . . 2 1 . . Low Security (%) 61 | 100 100 100 17 25 . 100 Level 1 18 | . . . 27 74 . . Level 2 19 | . . . 55 . . . Level 3 . | . . . . . . . Level 4 . | . . . . . . . Level 5 . | . . . . . . . High Security . | . . . . . . . Max Security . | . . . . . . . Squads Dispatched 3 | . 2 . 1 . . . Investigation 1 | . 1 . . . . . Extermination . | . . . . . . . Reinforcement 2 | . 1 . 1 . . . Assault . | . . . . . . . Garrison . | . . . . . . . Intercept . | . . . . . . . Searches Triggered 1 | . . . 1 . . . Construction Impeded . | . . . . . . . Haulers Reinforced . | . . . . . . . Active Scanning Responses . | . . . . . . . Cargo Convoy Interrupts . | . . . . . . . Stealth | -11 -10 -10 -9 -9 -9 -8 --------- Run | Jun Mat Min Mat Min Exi Min Distress Signals 9 | . 3 1 5 . . . Communications Jammed . | . . . . . . . Distress Signals . | . . . . . . . Times Spotted 117 | . 21 19 43 5 28 1 Peak Tracking Total 19 | . 4 19 9 3 9 1 Tactical Retreats 20 | . 2 2 3 . 13 . Traps | -11 -10 -10 -9 -9 -9 -8 ------- Run | Jun Mat Min Mat Min Exi Min Traps Triggered 2 | . . 1 . . 1 . Indirectly . | . . . . . . . Trap Hack Attempts . | . . . . . . . Triggered . | . . . . . . . Disarmed . | . . . . . . . Reprogrammed . | . . . . . . . Reused . | . . . . . . . Traps Extracted . | . . . . . . . Installed 1 | . . . . . 1 . Triggered . | . . . . . . . Most Traps Carried 1 | . . . . 1 1 . Machines | -11 -10 -10 -9 -9 -9 -8 ---------- Run | Jun Mat Min Mat Min Exi Min Machines Disabled 18 | . 1 1 2 1 13 . Max in Single Turn 2 | . 1 1 1 1 2 . Machines Repaired . | . . . . . . . Machines Sabotaged . | . . . . . . . Overloaded Fab Kills . | . . . . . . . Hacking | -11 -10 -10 -9 -9 -9 -8 --------- Run | Jun Mat Min Mat Min Exi Min Machines Accessed 10 | . 5 2 2 . 1 . Terminals 5 | . 4 . 1 . . . Fabricators . | . . . . . . . Repair Stations 1 | . . . 1 . . . Recycling Units 1 | . 1 . . . . . Scanalyzers . | . . . . . . . Garrison Access . | . . . . . . . Total Hacks 24 | . 17 2 4 . 1 . Successful 11 | . 5 2 3 . 1 . Failed 11 | . 11 . . . . . Catastrophic . | . . . . . . . Database Lockouts 2 | . 1 . 1 . . . Manual 19 | . 17 . 2 . . . Terminals 18 | . 16 . 2 . . . Fabricators . | . . . . . . . Repair Stations 2 | . . . 2 . . . Recycling Units 1 | . 1 . . . . . Scanalyzers . | . . . . . . . Garrison Access . | . . . . . . . Terminal Hacks 6 | . 2 2 1 . 1 . Record 1 | . . . . . 1 . Robot Analysis 2 | . 1 . 1 . . . Open Door 2 | . . 2 . . . . Zone Layout 1 | . 1 . . . . . Fabricator Hacks . | . . . . . . . Repair Station Hacks 2 | . . . 2 . . . Scan Component 1 | . . . 1 . . . Repair 1 | . . . 1 . . . Recycling Unit Hacks . | . . . . . . . Scanalyzer . | . . . . . . . Garrison Access Hacks . | . . . . . . . Unauthorized Hacks 3 | . 3 . . . . . Terminals 2 | . 2 . . . . . Track 1 | . 1 . . . . . Operators 1 | . 1 . . . . . Fabricators . | . . . . . . . Repair Stations . | . . . . . . . Recycling Units 1 | . 1 . . . . . Tunnel 1 | . 1 . . . . . Scanalyzers . | . . . . . . . Garrison Access . | . . . . . . . Data Cores Recovered . | . . . . . . . Used . | . . . . . . . Hacking Detections 4 | . 4 . . . . . Full Trace Events . | . . . . . . . Feedback Events . | . . . . . . . Feedback Blocked . | . . . . . . . Robot Schematics Acquired . | . . . . . . . Robots Built . | . . . . . . . Authchips . | . . . . . . . Time . | . . . . . . . Total Robot Build Rating . | . . . . . . . Part Schematics Acquired . | . . . . . . . Parts Built . | . . . . . . . Authchips . | . . . . . . . Time . | . . . . . . . Total Part Build Rating . | . . . . . . . Parts Repaired 1 | . . . 1 . . . Time 32 | . . . 32 . . . Parts Recycled . | . . . . . . . Recycled Matter . | . . . . . . . Retrieved Matter . | . . . . . . . Retrieved Components . | . . . . . . . Parts Scanalyzed . | . . . . . . . Part Schematics Acquired . | . . . . . . . Parts Damaged . | . . . . . . . Bothacking | -11 -10 -10 -9 -9 -9 -8 ------------ Run | Jun Mat Min Mat Min Exi Min Used RIF Installer . | . . . . . . . Robots Hacked . | . . . . . . . Non-combat . | . . . . . . . Combat . | . . . . . . . Robot Hacks Applied . | . . . . . . . Relay Couplers Released . | . . . . . . . Fabnet Peak Effective % . | . . . . . . . Robots Rewired . | . . . . . . . Allies Hacked . | . . . . . . . Hacks Repelled . | . . . . . . . Allies | -11 -10 -10 -9 -9 -9 -8 -------- Run | Jun Mat Min Mat Min Exi Min Total Allies 3 | . . 3 . . . . Largest Group 3 | . . 3 1 . . . Highest-Rated Group 40 | . . 40 16 . . . Highest-Rated Ally 16 | . . 16 16 . . . Total Orders 1 | . . . . . . 1 RETURN 1 | . . . . . . 1 Ally Attacks 15 | . . 13 2 . . . Total Damage 168 | . . 142 26 . . . Kills 2 | . . 2 . . . . Allies Corrupted . | . . . . . . . Allies Melted . | . . . . . . . Intel | -11 -10 -10 -9 -9 -9 -8 ------- Run | Jun Mat Min Mat Min Exi Min Robot Analysis Total 2 | . 1 . 1 . . . Derelict Logs Recovered 2 | . . 1 . 1 . . Drone Launches 1 | . . . . . . 1 Drone Recoveries 1 | . . . . . . 1 Exploration | -11 -10 -10 -9 -9 -9 -8 ------------- Run | Jun Mat Min Mat Min Exi Min Turns Passed 6954 | 60 1415 727 1497 537 2639 79 Spaces Moved 3387 | 32 711 323 757 305 1247 12 Core 6 | 2 . . 4 . . . Treads 3107 | 30 711 323 479 305 1247 12 Legs . | . . . . . . . Wheels 274 | . . . 274 . . . Hover . | . . . . . . . Flight . | . . . . . . . Fastest Speed 50 | 50 160 160 115 160 160 160 Average Speed 156 | 153 160 160 146 160 160 160 Slowest Speed 600 | 160 160 160 600 160 160 160 Overloaded Moves . | . . . . . . . Propulsion Burnouts . | . . . . . . . Robots Hopped . | . . . . . . . Cave-ins Triggered . | . . . . . . . Exploration Rate (%) 54 | 3 93 79 60 56 82 9 Regions Visited 6 Branch Regions 4 Pre-discovered Areas 3 | . 1 . . 1 1 . Known Exits Taken . | . . . . . . . Unknown Exits Taken 6 | 1 1 1 1 1 1 . Scrap Searched 3 | . . 1 . 1 . 1 Spaces Dug 18 | . 3 . 5 10 . . Terrain Destroyed 102 | . 3 . 28 28 32 11 Melee 8 | . 3 . 5 . . . Projectile 24 | . . . . . 13 11 AOE 70 | . . . 23 28 19 . Terrain Rammed . | . . . . . . . Walls Destroyed . | . . . . . . . Machines Disabled . | . . . . . . . Actions | -11 -10 -10 -9 -9 -9 -8 --------- Run | Jun Mat Min Mat Min Exi Min Total 4370 | 40 879 502 979 331 1597 42 Wait 453 | . 80 143 81 3 137 9 Move 3381 | 31 710 322 756 304 1246 12 Hop . | . . . . . . . Pick Up 46 | 2 13 4 10 1 16 . Fast Attach 26 | 6 4 2 11 1 2 . Attach 16 | . . 2 6 . 2 6 Detach 6 | . 2 2 2 . . . Swap 55 | 1 7 3 10 5 25 4 Drop 36 | . 7 3 11 2 13 . Fire 302 | . 48 18 83 11 131 11 Melee 36 | . 7 . 5 . 24 . Ram . | . . . . . . . Kick . | . . . . . . . Crush 12 | . 1 3 4 4 . . Escape Stasis . | . . . . . . . Rewire . | . . . . . . . Trap 1 | . . . . . 1 . Miscellaneous . | . . . . . . . Route ------- -11/Junkyard -10/Materials (discovered 6 exits: *Mat x3 / *Min x2 / [*Sub]) -10/Mines (discovered 2 exits: *Mat / [*Sub]) -9/Materials (discovered 3 exits: [*Mat x2] / [*Min]) -9/Mines (discovered 3 exits: [*Mat x2] / *Exi) -9/Exiles (discovered 2 exits: [*Min x2]) -8/Mines History --------- Turn | Location | Event 6 | -11/Junkyard | Discovered new exit (range 16) 61 | -11/Junkyard | Entered Materials 105 | -10/Materials | Central database locked down 121 | -10/Materials | Discovered new exit (range 8) 308 | -10/Materials | Build established: Mutant 390 | -10/Materials | Discovered new exit (range 8) 797 | -10/Materials | Discovered new exit (range 14) 975 | -10/Materials | Discovered new exit (range 16) 1091 | -10/Materials | Discovered new exit (range 15) 1216 | -10/Materials | Discovered new exit (range 8) 1476 | -10/Materials | Entered Mines 1484 | -10/Mines | Met a Derelict bent on vengeance 1563 | -10/Mines | Met a Derelict who couldn't figure out how to use a Trap Extractor 1685 | -10/Mines | Discovered new exit (range 5) 1756 | -10/Mines | Learned Materials stockpile data 1914 | -10/Mines | Assembled infested the area 2056 | -10/Mines | Assisted by bots powering up and referring to "LRC-V3" 2079 | -10/Mines | Discovered new exit (range 5) 2118 | -10/Mines | Found the Drone Emporium 2125 | -10/Mines | Found Prototype Device 2125 | -10/Mines | Identified Sensor Drone Bay 2203 | -10/Mines | Entered Materials 2203 | -9/Materials | Accompanied by 1 ally 2203 | -9/Materials | Evolved 2 slots: Propulsion x1, Utility x1 2504 | -9/Materials | Destroyed 10 combat bots 2505 | -9/Materials | Lost 6 parts (1p3n1u1w) 2527 | -9/Materials | Discovered new exit (range 15) 2636 | -9/Materials | Central database locked down 2707 | -9/Materials | Discovered new exit (range 10) 3003 | -9/Materials | Search patrols dispatched 3278 | -9/Materials | Repaired Med. Armor Plating 3459 | -9/Materials | Discovered new exit (range 5) 3700 | -9/Materials | Entered Mines 3750 | -9/Mines | Discovered new exit (range 6) 3857 | -9/Mines | Found a hidden stash of uninstalled traps 3958 | -9/Mines | Learned location of 1 exit from Materials 3991 | -9/Mines | Discovered new exit (range 3) 4018 | -9/Mines | Build established: Scavenger-Mutant 4135 | -9/Mines | Learned location of Storage (-8) 4225 | -9/Mines | Deemed a non-threat by the Exiles lab entrance 4226 | -9/Mines | Discovered new exit (range 5) 4237 | -9/Mines | Entered Exiles 4265 | -9/Exiles | Discovered new exit (range 15) 4282 | -9/Exiles | Met 8R-AWN 4305 | -9/Exiles | Met EX-HEX 4364 | -9/Exiles | Met EX-DEC 4397 | -9/Exiles | Learned location of Zion (-6) 4534 | -9/Exiles | Build established: Mutant 4973 | -9/Exiles | Attacked by the Exiles 5150 | -9/Exiles | Found Prototype Ballistic Gun 5155 | -9/Exiles | Found Prototype Ballistic Gun 5160 | -9/Exiles | Found Prototype Device 5169 | -9/Exiles | Identified 8R-AWN's Boregun (x2) 6083 | -9/Exiles | Destroyed 8R-AWN 6115 | -9/Exiles | Identified AS-neutralizer No. 17b 6278 | -9/Exiles | Destroyed EX-DEC 6298 | -9/Exiles | Destroyed EX-BIN 6318 | -9/Exiles | Destroyed EX-HEX 6857 | -9/Exiles | Discovered new exit (range 14) 6876 | -9/Exiles | Entered Mines 6899 | -8/Mines | 12-ASH came to Exiles' defense 6922 | -8/Mines | Core integrity fell below 50% 6946 | -8/Mines | Core integrity fell below 20% 6955 | -8/Mines | Destroyed by 12-ASH with 12-ASH's Boomstick Last Messages --------------- 06940_ HV Slug penetrates 12-ASH. 06940_ HV Slug penetrates Wall. 06943_ HV Slug penetrates 12-ASH. 06943_ HV Slug penetrates Wall. 06943_ Mak. Power Source destroyed. 06946_ HV Slug penetrates 12-ASH. 06946_ HV Slug penetrates Earth. 06946_ HV Slug penetrates 12-ASH. 06946_ HV Slug penetrates Earth. 06949_ HV Slug penetrates 12-ASH. 06949_ HV Slug penetrates Earth. 06949_ HV Slug penetrates Wall. 06952_ HV Slug penetrates 12-ASH. 06952_ HV Slug penetrates Earth. 06952_ Lgt. Treads destroyed. 06955_ HV Slug penetrates Wall. 06955_ HV Slug penetrates 12-ASH. 06955_ 12-ASH suffers critical hit (Destroy). 06955_ Destroyed Prototype Device. 06955_ HV Slug penetrates Earth. Map ----- +----------------------------------------------------+ | ????????????????????????????????????? | | ????????????????????????????????????? | | ????????????????????????????????????? | | ????????????????????????????????????? | | ????????????????????????????????????? | | ????????????????????????????????????? | | ????????????????????????????????????? | | ????????????????????????????????????? | | ????????????????????????????????????? | | ????????????????????????????????????? | | ????????????????????????????????????? | | ????????????????????????????????????? | | ????????????????????????????????????? | | ????????????????????????????????????? | | ?## ? ? ???????????????????????????? | | ?# """ ??????????????????????????? | | ?# " " ??????????????????????????? | | ?# " " ??????????????????????????? | | ?? ?????????????????????????? | | ??? ?????????????????????????? | | ????# ?????????????????????????? | | ?????# ?????????????????????????? | | ??????# #????????????????????????? | | ???????# ##??????????????????????? | | ????????# ##???####??????????????? | | ?????????# @;#??## ##?????????????? | | ?????????# ;#### #?????????????? | | ?????????# g ! % #?????????????? | | ????????## = ! ##?????????????? | | ????????# #;# ##?????????????? | | ????????# ;# # #####?????????? | | ???????# #;#### #?????????? | | ??????# # #??# ## #?????????? | | ??????# # #??# ##????????????? | | ??????## #? ???# ##?????????????? | | ???????###?? ???#### #??????????????? | | ???????????? ??????? #??????????????? | | ???????????? ??????? #??????????????? | | ????????????#??????? #??????????????? | | ???????????????????? #??????????????? | | ???????????????????? #??????????????? | | ???????????????????? #??????????????? | | ????????????????????????????????????? | | ????????????????????????????????????? | | ????????????????????????????????????? | | ????????????????????????????????????? | | ????????????????????????????????????? | | ????????????????????????????????????? | | ????????????????????????????????????? | | ????????????????????????????????????? | +----------------------------------------------------+ Best States ------------- Heat Dissipation 54 Energy Generation 15 Energy Capacity 265 Matter Stores 300 Matter Capacity 300 Sight Range 16 Terrain Scan Density 10 Armor Coverage 225 Evasion (%) 40 Targeting Accuracy 5 Recoil Reduction 3 Item Schematics ----------------- None Robot Schematics ------------------ None Fabricated ------------ Nothing Alien Tech Used ----------------- None Achievements -------------- None Challenges ------------ None Game ------ Seed CompositeAntigravMegatreads Manual? 0 Play Time 00:36:28 Cumulative 513.8 hours Start 2023.11.30 @ 13:55:01 End 2023.11.30 @ 14:31:54 Sessions 1 Manual Loads 0 Difficulty Rogue Special Mode None Game No. 577 Rogue 490 Adventurer 87 Explorer 0 Win Type - Total 28 Types 8/0/15/1/1/0/3/0/0 Lore% 92 Gallery% 93 Achievement% 77 Wizard Run 0 Options --------- ASCII 0 Keyboard 1 Movement Numpad Keybinds 0 Fullscreen 1 Font 18/SmallcapsGlow Map View 76x50 Tactical HUD 1 Map Filters NONE Filters NONE Steam 1 RUN: ba88c815-8187-47c5-b512-870dffd3ea2d